lending/lending_fUSD_20251107
["ID","MTS","AMOUNT","RATE_DAILY","PERIOD"]
[393361552,1762526779701,-500.0,0.00046575,30]
[393361553,1762526779762,-500.0,0.00046575,30]
[393361554,1762526779828,-250.0,0.00046575,30]
[393361555,1762526779892,-500.0,0.00046575,30]
[393361556,1762526779963,-500.0,0.00046575,30]
[393361557,1762526780035,-250.0,0.00046575,30]
[393361558,1762526780104,-500.0,0.00046575,30]
[393361559,1762526780173,-250.0,0.00046575,30]
[393361560,1762526780248,-500.0,0.00046575,30]
[393361561,1762526780330,-250.0,0.00046575,30]
[393361562,1762526780408,-500.0,0.00046575,30]
[393361563,1762526780484,-250.0,0.00046575,30]
[393361564,1762526780561,-500.0,0.00046575,30]
[393361565,1762526780648,371.44118231,0.00046575,30]
[393361566,1762526780719,246.54,0.00046325,120]
[393361567,1762526780808,151.0,0.00046575,30]
[393361568,1762526780895,151.0,0.00046575,30]
[393361569,1762526780996,197.05405828,0.00046575,30]
[393361570,1762526784319,151.0,0.00046575,30]
[393361571,1762526800258,-151.0,0.00031,31]
[393361572,1762526800361,-151.0,0.00031,31]
[393361573,1762526800465,-151.0,0.00031,31]
[393361574,1762526800592,-151.0,0.00031,31]
[393361575,1762526800697,-157.33,0.00032,30]
[393361576,1762526800814,-157.33,0.000336,30]
[393361577,1762526800944,-157.33,0.000348,30]
[393361578,1762526801075,-151.0,0.00035,31]
[393361579,1762526801183,-151.0,0.00035,31]
[393361580,1762526801287,-151.0,0.00035,31]
[393361581,1762526801391,-151.0,0.00035,31]
[393361582,1762526801495,-157.33,0.000366,30]
[393361583,1762526801626,-710.93,0.00040334,30]
[393361584,1762526801908,-8902.52624738,0.00046325,120]
[393361585,1762526802014,-150.0,0.00046598,30]
[393361586,1762526802112,-1096.54,0.000466,30]
[393361587,1762526802210,-169.08,0.000466,30]
[393361588,1762526802308,-477.21,0.000466,30]
[393361589,1762526802405,-1205.69,0.000466,30]
[393361590,1762526802501,-415.8,0.00046615,30]
[393361591,1762526802602,-150.0,0.0004664,30]
[393361592,1762526802699,-186.88071713,0.00046647,30]
[393361593,1762526802798,-151.59655694,0.00046647,30]
[393361594,1762526802888,-500.0,0.0004673,120]
[393361595,1762526802996,-150.0,0.00046778,30]
[393361596,1762526803094,-150.0,0.00046778,30]
[393361597,1762526803181,-186.88071713,0.000468,30]
[393361598,1762526803271,-151.59655694,0.000468,30]
[393361599,1762526803372,-306.86638204,0.000468,120]
[393361600,1762526803478,-2000.0,0.00046862,120]
[393361601,1762526803561,-150.0,0.00046863,30]
[393361602,1762526803637,-150.0,0.00046863,30]
[393361603,1762526803709,-611.599297,0.000469,120]
[393361604,1762526803779,-186.88071713,0.00046953,30]
[393361605,1762526803849,-151.59655694,0.00046953,30]
[393361606,1762526803918,-150.0,0.00046959,30]
[393361607,1762526803989,-211.0,0.0004698,30]
[393361608,1762526804066,-445.0,0.00046986,120]
[393361609,1762526804142,-3012.56,0.00047,120]
[393361610,1762526804223,-150.0,0.00047,120]
[393361611,1762526804319,-1000000.0,0.00047,120]
[393361612,1762526804409,-1000000.0,0.00047,120]
[393361613,1762526804497,-861700.0,0.00047,120]
[393361614,1762526804584,-2405.00023689,0.00047,120]
[393361615,1762526804664,-201.74124904,0.00047,120]
[393361616,1762526804738,-12483.0,0.00047,120]
[393361617,1762526804812,-2388.9044609,0.00047,120]
[393361618,1762526804885,-10000.0,0.00047,30]
[393361619,1762526804964,-150.0,0.00047019,30]
[393361620,1762526805043,-1900.0,0.00047054,60]
[393361621,1762526805114,-150.0,0.00047086,30]
[393361622,1762526805186,-186.88071713,0.00047106,30]
[393361623,1762526805264,-151.59655694,0.00047106,30]
[393361624,1762526805345,-150.0,0.00047139,30]
[393361625,1762526805421,-150.0,0.0004716,30]
[393361626,1762526805498,-5000.0,0.000472,120]
[393361627,1762526805583,-186.88071713,0.0004726,30]
[393361628,1762526805659,-151.59655694,0.0004726,30]
[393361629,1762526805733,-150.0,0.0004726,30]
[393361630,1762526805806,-150.0,0.0004726,30]
[393361631,1762526805882,-153.0,0.000473,120]
[393361632,1762526805956,-171.89768115,0.00047308,120]
[393361633,1762526806023,-150.0,0.00047309,30]
[393361634,1762526806093,-150.0,0.0004732,30]
[393361635,1762526806163,-500.0,0.00047328,60]
[393361636,1762526806236,-150.0,0.0004736,120]
[393361637,1762526806307,-1610.21887064,0.000474,120]
[393361638,1762526806390,-500.0,0.00047404,120]
[393361639,1762526806478,-186.88071713,0.00047413,30]
[393361640,1762526806563,-151.59655694,0.00047413,30]
[393361641,1762526806644,-150.0,0.00047458,30]
[393361642,1762526806718,-214.06367767,0.00047463,120]
[393361643,1762526806786,-2000.0,0.00047488,120]
[393361644,1762526806853,-1000000.0,0.000475,120]
[393361645,1762526806920,-154.0,0.000475,120]
[393361646,1762526806984,-150.0,0.000475,30]
[393361647,1762526807046,-150.0,0.000475,30]
[393361648,1762526807106,-150.0,0.000475,30]
[393361649,1762526807167,-150.0,0.00047532,30]
[393361650,1762526807234,-380.0,0.00047555,90]
[393361651,1762526807309,-186.88071713,0.00047566,30]
[393361652,1762526807385,-151.59655694,0.00047566,30]
[393361653,1762526807459,-150.0,0.00047681,30]
[393361654,1762526807530,-186.88071713,0.00047719,30]
[393361655,1762526807602,-151.59655694,0.00047719,30]
[393361656,1762526807678,-150.0,0.00047741,30]
[393361657,1762526807746,-150.0,0.00047755,30]
[393361658,1762526807813,-150.0,0.00047755,30]
[393361659,1762526807880,-150.0,0.00047861,30]
[393361660,1762526807952,-186.88071713,0.00047872,30]
[393361661,1762526808024,-151.59655694,0.00047872,30]
[393361662,1762526808093,-163.0,0.0004788,90]
[393361663,1762526808160,-1619.17026909,0.00047933,120]
[393361664,1762526808225,-380.0,0.00047955,90]
[393361665,1762526808293,-150.0,0.00047978,30]
[393361666,1762526808363,-150.0,0.00047982,30]
[393361667,1762526808439,-1000000.0,0.00048,120]
[393361668,1762526808517,-66777.58616157,0.00048,120]
[393361669,1762526813321,-285.152704,0.00031,31]
[393361670,1762526813406,-4657.386,0.00031844,30]
[393361671,1762526813484,-219.968,0.00031844,30]
[393361672,1762526813625,-678.27039842,0.0004,120]
[393361673,1762526813709,-246.36,0.00046325,120]
[393361674,1762526813790,-933222.41383843,0.00048,120]
[393361675,1762526813874,-691.6248331,0.00048,120]
[393361676,1762526813955,-192.74545899,0.00048,120]
[393361677,1762526814030,-2718.65587182,0.00048,120]
[393361678,1762526814102,-450.20932957,0.00048,120]
[393361679,1762526814179,-1000000.0,0.00048,120]
[393361680,1762526814270,-1000000.0,0.00048,120]
[393361681,1762526814354,-150.0,0.00048,120]
[393361682,1762526814433,-150.0,0.00048,120]
[393361683,1762526814509,-563.3454761,0.00048,120]
[393361684,1762526814587,-1361.0,0.00048,120]
[393361685,1762526814659,-1908.51507656,0.00048,120]
[393361686,1762526814729,-500.0,0.00048,120]
[393361687,1762526814809,-300.0,0.00048,120]
[393361688,1762526814903,-957.38772788,0.00048,120]
[393361689,1762526814981,-10000.0,0.00048,30]
[393361690,1762526815053,-150.0,0.00048,120]
[393361691,1762526815134,-186.88071713,0.00048026,30]
[393361692,1762526815209,-151.59655694,0.00048026,30]
[393361693,1762526815286,-150.0,0.00048042,30]
[393361694,1762526815371,-150.0,0.00048053,30]
[393361695,1762526815457,-153.0,0.000481,120]
[393361696,1762526815540,-150.0,0.00048102,30]
[393361697,1762526815620,-2000.0,0.00048113,120]
[393361698,1762526815692,-1900.0,0.0004815,60]
[393361699,1762526815767,-186.88071713,0.00048179,30]
[393361700,1762526815832,-151.59655694,0.00048179,30]
[393361701,1762526815896,-5000.0,0.000482,120]
[393361702,1762526815966,-150.0,0.00048201,30]
[393361703,1762526816036,-150.0,0.00048222,30]
[393361704,1762526816100,-150.0,0.00048222,30]
[393361705,1762526816169,-186.88071713,0.00048332,30]
[393361706,1762526816242,-151.59655694,0.00048332,30]
[393361707,1762526816322,-150.0,0.0004835,30]
[393361708,1762526816396,-9315.0,0.000484,120]
[393361709,1762526816466,-150.0,0.00048403,30]
[393361710,1762526816540,-500.0,0.00048424,60]
[393361711,1762526816616,-150.0,0.00048424,30]
[393361712,1762526816681,-150.0,0.00048463,30]
[393361713,1762526816746,-186.88071713,0.00048485,30]
[393361714,1762526816813,-151.59655694,0.00048485,30]
[393361715,1762526816885,-1000000.0,0.000485,120]
[393361716,1762526816970,-1000000.0,0.000485,120]
[393361717,1762526817045,-200.0,0.00048524,120]
[393361718,1762526817118,-150.0,0.00048533,120]
[393361719,1762526817184,-150.0,0.00048584,30]
[393361720,1762526817253,-186.88071713,0.00048638,30]
[393361721,1762526817339,-151.59655694,0.00048638,30]
[393361722,1762526817415,-150.0,0.00048647,30]
[393361723,1762526817497,-150.0,0.00048647,30]
[393361724,1762526817579,-725.00569723,0.0004868,120]
[393361725,1762526817653,-154.0,0.000487,120]
[393361726,1762526817722,-150.0,0.00048704,30]
[393361727,1762526817791,-2000.0,0.00048739,120]
[393361728,1762526817857,-150.0,0.00048764,30]
[393361729,1762526817930,-186.88071713,0.00048791,30]
[393361730,1762526817992,-151.59655694,0.00048791,30]
[393361731,1762526818057,-200.96319987,0.000488,120]
[393361732,1762526818119,-500.0,0.00048807,120]
[393361733,1762526818183,-150.0,0.0004887,30]
[393361734,1762526818247,-1253.91496214,0.00048875,60]
[393361735,1762526818320,-445.0,0.00048886,120]
[393361736,1762526818394,-181.40419218,0.000489,120]
[393361737,1762526818472,-150.0,0.00048945,30]
[393361738,1762526818549,-186.88071713,0.00048945,30]
[393361739,1762526818624,-150.0,0.00048945,30]
[393361740,1762526818694,-151.59655694,0.00048945,30]
[393361741,1762526818770,-150.0,0.00048945,30]
[393361742,1762526818836,-150.0,0.00048945,30]
[393361743,1762526818901,-1200.0,0.00048987,31]
[393361744,1762526818965,-211.0,0.0004899,30]
[393361745,1762526819033,-401.53980648,0.00049,120]
[393361746,1762526819107,-8736.79650874,0.00049,120]
[393361747,1762526823282,-702.13,0.00040334,30]
[393361748,1762526823384,-1000000.0,0.000455,120]
[393361749,1762526823482,-1000000.0,0.00046,120]
[393361750,1762526823580,-991263.20349126,0.00049,120]
[393361751,1762526823665,-1000000.0,0.00049,120]
[393361752,1762526823745,-1000000.0,0.00049,120]
[393361753,1762526823823,-493.79211436,0.00049,30]
[393361754,1762526823902,-293.87681303,0.00049,120]
[393361755,1762526823980,-431.40984199,0.00049,120]
[393361756,1762526824062,-6815.58773936,0.00049,120]
[393361757,1762526826952,-1120.0,0.00048061,120]
[393361758,1762526827025,-993184.41226064,0.00049,120]
[393361759,1762526827098,-1000000.0,0.00049,120]
[393361760,1762526827176,-1000000.0,0.00049,120]
[393361761,1762526827253,-1000000.0,0.00049,120]
[393361762,1762526827336,-1000000.0,0.00049,120]
[393361763,1762526827424,-5695.58773936,0.00049,120]
[393361764,1762526830592,-994304.41226064,0.00049,120]
[393361765,1762526830663,-1000000.0,0.00049,120]
[393361766,1762526830726,-36229.37832593,0.00049,30]
[393361767,1762526830791,-1038.66801797,0.00049,120]
[393361768,1762526830861,-12483.0,0.00049,120]
[393361769,1762526830942,-3000.0,0.00049,120]
[393361770,1762526831011,-2600.0,0.00049,120]
[393361771,1762526831081,-2984.16,0.00049,30]
[393361772,1762526831141,-43465.85,0.00049,120]
[393361773,1762526831205,-10000.0,0.00049,30]
[393361774,1762526831283,-153.0,0.00049,120]
[393361775,1762526831374,-150.0,0.00049015,30]
[393361776,1762526831457,-150.0,0.00049015,30]
[393361777,1762526831537,-150.0,0.00049015,30]
[393361778,1762526831609,-223.72728903,0.00049015,30]
[393361779,1762526831679,-500.0,0.00049015,30]
[393361780,1762526831746,-437.69673721,0.00049015,30]
[393361781,1762526831811,-500.0,0.00049015,30]
[393361782,1762526831884,-500.0,0.00049015,30]
[393361783,1762526831955,-500.0,0.00049015,30]
[393361784,1762526832215,-500.0,0.00049015,30]
[393361785,1762526832289,-545.76560016,0.00049015,30]
[393361786,1762526832369,-150.0,0.00049015,60]
[393361787,1762526832453,-150.0,0.00049015,60]
[393361788,1762526832537,-150.0,0.00049015,60]
[393361789,1762526832618,-173.48364417,0.00049015,60]
[393361790,1762526832693,-500.0,0.00049015,30]
[393361791,1762526832766,-500.0,0.00049015,30]
[393361792,1762526832841,-500.0,0.00049015,30]
[393361793,1762526832917,-307.56828376,0.00049015,30]
[393361794,1762526832991,-500.0,0.00049015,30]
[393361795,1762526833060,-500.0,0.00049015,30]
[393361796,1762526833132,-233.33506662,0.00049015,30]
[393361797,1762526833206,-500.0,0.00049015,30]
[393361798,1762526833281,-500.0,0.00049015,30]
[393361799,1762526833355,-500.0,0.00049015,30]
[393361800,1762526833429,-500.0,0.00049015,30]
[393361801,1762526833506,-500.0,0.00049015,30]
[393361802,1762526833583,-500.0,0.00049015,30]
[393361803,1762526833660,-500.0,0.00049015,30]
[393361804,1762526833732,-5000.0,0.00049046,31]
[393361805,1762526833802,-150.0,0.00049093,30]
[393361806,1762526833877,-186.88071713,0.00049098,30]
[393361807,1762526833947,-151.59655694,0.00049098,30]
[393361808,1762526834017,-150.0,0.00049125,30]
[393361809,1762526834084,-150.0,0.00049185,30]
[393361810,1762526834160,-5000.0,0.000492,120]
[393361811,1762526834239,-150.0,0.00049242,30]
[393361812,1762526834325,-1900.0,0.00049246,60]
[393361813,1762526834414,-186.88071713,0.00049251,30]
[393361814,1762526834500,-151.59655694,0.00049251,30]
[393361815,1762526834585,-1903.21,0.00049257,120]
[393361816,1762526834675,-150.0,0.00049306,30]
[393361817,1762526834758,-300.0,0.00049315,30]
[393361818,1762526834847,-300.0,0.00049315,30]
[393361819,1762526834938,-300.0,0.00049315,30]
[393361820,1762526835034,-350.0,0.00049315,30]
[393361821,1762526835119,-350.0,0.00049315,30]
[393361822,1762526835203,-350.0,0.00049315,30]
[393361823,1762526835291,-350.0,0.00049315,30]
[393361824,1762526835374,-350.0,0.00049315,30]
[393361825,1762526835459,-300.0,0.00049315,30]
[393361826,1762526835547,-384.0,0.00049315,30]
[393361827,1762526835632,-259.69597778,0.00049315,120]
[393361828,1762526835712,-272.0475,0.00049315,120]
[393361829,1762526835794,-238.56012008,0.00049315,120]
[393361830,1762526835876,-500.0,0.00049315,38]
[393361831,1762526835957,-500.0,0.00049315,38]
[393361832,1762526836039,500.0,0.00049015,30]
[393361833,1762526836136,168.34614064,0.00049015,30]
[393361834,1762526836225,208.01540995,0.00049315,30]
[393361835,1762526836498,150.0,0.00049015,30]
[393361836,1762526836588,150.0,0.00049015,30]
[393361837,1762526836675,150.0,0.00049015,30]
[393361838,1762526836763,154.60451121,0.00049015,30]
[393361839,1762526836852,151.0,0.00031,31]
[393361840,1762526836997,151.0,0.00035,31]
[393361841,1762526837340,687.39,0.00040334,30]
[393361842,1762526837623,151.0,0.00031,31]
[393361843,1762526838002,151.0,0.00035,31]
[393361844,1762526838245,150.0,0.00049015,30]
[393361845,1762526838337,556.0,0.000475,120]
[393361846,1762526838450,156.32912669,0.00049015,30]
[393361847,1762526839254,306.14891374,0.000492,120]
[393361848,1762526839342,500.0,0.00049015,30]
[393361849,1762526839507,500.0,0.00049015,30]
[393361850,1762526839729,230.5927284,0.000492,120]
[393361851,1762526839811,356.27494664,0.00049015,30]
[393361852,1762526876194,182.22026129,0.00038834,120]
[393361853,1762526876669,2000.0,0.00038834,30]
[393361854,1762526880729,2000.0,0.00038834,30]
[393361855,1762526895884,2000.0,0.00038834,30]
[393361856,1762526899764,2000.0,0.00038834,30]
[393361857,1762526917193,2000.0,0.00038834,30]
[393361858,1762526919377,536.88432068,0.00038834,30]
[393361860,1762526936924,2000.0,0.00038834,30]
[393361861,1762526956916,2000.0,0.00038834,30]
[393361862,1762526976540,438.44654305,0.00038834,30]
[393361863,1762526979876,508.2289723,0.00038834,120]
[393361878,1762527031533,-158.52,0.00016221,2]
[393361880,1762527031544,-500.0,0.00016897,2]
[393361882,1762527031553,-261.34164384,0.00016897,2]
[393361883,1762527031563,-224.68232437,0.000169,2]
[393361884,1762527031572,-500.0,0.00016973,2]
[393361885,1762527031581,-500.0,0.00016973,2]
[393361886,1762527031590,-191.9,0.00016982,2]
[393361887,1762527031599,-163.38,0.00016987,2]
[393361888,1762527031609,-1200.0,0.00016995,2]
[393361889,1762527031618,-300.0,0.00016995,2]
[393361890,1762527031627,-300.0,0.00016995,2]
[393361891,1762527031637,-1200.0,0.00016995,2]
[393361892,1762527031647,-500.0,0.00016996,2]
[393361893,1762527031655,-228.26546298,0.00016996,2]
[393361894,1762527031665,-548.50444681,0.00016996,2]
[393361895,1762527031676,-500.0,0.00016996,2]
[393361896,1762527031685,-12740.4464346,0.00016996,2]
[393361897,1762527031694,-1000.0,0.00016997,2]
[393361898,1762527031703,-152086.9468854,0.00016997,2]
[393361899,1762527031721,-1457.06107281,0.00016997,2]
[393361900,1762527031732,-676.29383263,0.00016997,2]
[393361901,1762527031743,-27215.41836924,0.00016997,2]
[393361902,1762527031753,-1880.846,0.00016997,2]
[393361903,1762527031831,-3712.49726896,0.00016997,2]
[393361913,1762527037530,-546.025382,0.00016997,2]
[393361914,1762527037542,-830.14400184,0.00016997,2]
[393361915,1762527037698,-719.80000034,0.00016997,2]
[393361916,1762527037710,-876.25,0.00016997,2]
[393361917,1762527037721,-23144.7676488,0.00016997,2]
[393361928,1762527039178,150.0,0.0003885,120]
[393361935,1762527039541,-293.78547223,0.00016996,2]
[393361936,1762527039550,-50010.37731734,0.00016997,2]
[393361937,1762527039562,-9628.34832608,0.00016997,2]
[393361938,1762527039679,-24104.6103854,0.00016997,2]
[393361939,1762527039691,-383.01856,0.00016997,2]
[393361940,1762527039703,-1340.45242601,0.00016997,2]
[393361941,1762527039714,-1010.8,0.00016997,2]
[393361942,1762527039725,-411.96275,0.00016997,2]
[393362011,1762527042799,-2384.63996203,0.00016997,2]
[393362012,1762527042811,-571.99176668,0.00016997,2]
[393362013,1762527042823,-7722.4080785,0.00016997,2]
[393362014,1762527042835,-23979.36412417,0.00016997,2]
[393362015,1762527042907,-371.82399996,0.00016997,2]
[393362016,1762527043019,-682.93509177,0.00016997,2]
[393362020,1762527046075,-12560.50902974,0.00016997,2]
[393362021,1762527046086,-270.72500463,0.00016997,2]
[393362024,1762527314732,500.0,0.00038936,120]
[393362025,1762527315000,500.0,0.00038936,120]
[393362026,1762527315197,286.30063247,0.00038936,120]
[393362027,1762527360476,-157.34,0.000316,30]
[393362028,1762527360585,-999.0,0.00032876,120]
[393362029,1762527360690,-151.0,0.00035,31]
[393362030,1762527360780,-151.0,0.00035,31]
[393362031,1762527360869,-163.557123,0.00035,31]
[393362032,1762527360957,-151.0,0.00035,31]
[393362033,1762527361055,-151.000013,0.00035,31]
[393362034,1762527361143,-151.0,0.00035,31]
[393362035,1762527361232,-151.0,0.00035,31]
[393362036,1762527361323,-151.0,0.00035,31]
[393362037,1762527361413,-151.0,0.00035,31]
[393362038,1762527361503,-151.0,0.00035,31]
[393362039,1762527361593,-269.713209,0.00035,31]
[393362040,1762527361689,-151.0,0.00035,31]
[393362041,1762527361779,-255.837939,0.00035,31]
[393362042,1762527361866,-155.260518,0.00035,31]
[393362043,1762527361956,-151.0,0.00035,31]
[393362044,1762527362048,-151.0,0.00035,31]
[393362045,1762527362137,-151.0,0.00035,31]
[393362046,1762527362229,-421.125003,0.00035,31]
[393362047,1762527362323,-421.125003,0.00035,31]
[393362048,1762527362428,-151.0,0.00035,31]
[393362049,1762527362542,-421.125003,0.00035,31]
[393362050,1762527362639,-421.125003,0.00035,31]
[393362051,1762527362735,-151.0,0.00035,31]
[393362052,1762527362829,-151.0,0.00035,30]
[393362053,1762527362925,-151.0,0.00035,31]
[393362054,1762527363023,-158.190044,0.00035,31]
[393362055,1762527363122,-151.0,0.00035,31]
[393362056,1762527363218,-407.269091,0.00035,31]
[393362057,1762527363315,-177.147875,0.00035,31]
[393362058,1762527363412,-407.269091,0.00035,31]
[393362059,1762527363509,-407.269091,0.00035,31]
[393362060,1762527363605,-407.269091,0.00035,31]
[393362061,1762527363696,-151.0,0.00035,31]
[393362062,1762527363787,-224.413836,0.00035,31]
[393362063,1762527363887,-151.0,0.00035,31]
[393362064,1762527363980,-151.0,0.00035,31]
[393362065,1762527364072,-292.140606,0.00035,31]
[393362066,1762527364161,-151.0,0.00035,31]
[393362067,1762527364249,-151.0,0.00035,31]
[393362068,1762527364341,-151.0,0.00035,31]
[393362069,1762527364439,-1058.846617,0.00035,31]
[393362070,1762527364530,-151.0,0.00035,31]
[393362071,1762527364620,-1058.846617,0.00035,31]
[393362072,1762527364708,-153.709162,0.00035,31]
[393362073,1762527364799,-151.0,0.00035,31]
[393362074,1762527364894,-1058.846617,0.00035,31]
[393362075,1762527364989,-151.0,0.00035,31]
[393362076,1762527365085,-151.0,0.00035,31]
[393362077,1762527365181,-151.0,0.00035,31]
[393362078,1762527365284,-1058.846617,0.00035,31]
[393362079,1762527365621,-151.0,0.00035,31]
[393362080,1762527365727,-151.0,0.00035,31]
[393362081,1762527365821,-151.0,0.00035,31]
[393362082,1762527365917,-151.0,0.00035,31]
[393362083,1762527366012,-3451.281288,0.00035,31]
[393362084,1762527366107,-610.874218,0.00035,30]
[393362085,1762527366198,-3451.281288,0.00035,31]
[393362086,1762527366294,-610.874218,0.00035,30]
[393362087,1762527366389,-610.874218,0.00035,30]
[393362088,1762527366481,-3451.281288,0.00035,31]
[393362089,1762527366577,-610.874218,0.00035,30]
[393362090,1762527366672,-3451.281288,0.00035,31]
[393362091,1762527366766,-1081.455443,0.00035,31]
[393362092,1762527366855,-1081.455443,0.00035,31]
[393362093,1762527366946,-1081.455443,0.00035,31]
[393362094,1762527367036,-1081.455443,0.00035,31]
[393362095,1762527367123,-151.0,0.00035,31]
[393362096,1762527367211,-570.693419,0.00035,31]
[393362097,1762527367303,-151.0,0.00035,31]
[393362098,1762527367407,-570.693419,0.00035,31]
[393362099,1762527367506,-570.693419,0.00035,31]
[393362100,1762527367603,-151.0,0.00035,31]
[393362101,1762527367701,-570.693419,0.00035,31]
[393362102,1762527367791,-2767.79498,0.00035,31]
[393362103,1762527367879,-151.0,0.00035,31]
[393362104,1762527367970,-151.0,0.00035,31]
[393362105,1762527368060,-151.0,0.00035,31]
[393362106,1762527368152,-2767.79498,0.00035,31]
[393362107,1762527368242,-151.0,0.00035,31]
[393362108,1762527368335,-2767.79498,0.00035,31]
[393362109,1762527368426,-151.0,0.00035,31]
[393362110,1762527368520,-151.0,0.00035,31]
[393362111,1762527368620,-2767.79498,0.00035,31]
[393362112,1762527368716,-591.534039,0.00035,31]
[393362113,1762527368814,-151.0,0.00035,31]
[393362114,1762527368914,-260.349826,0.00035,31]
[393362115,1762527369006,-591.534039,0.00035,31]
[393362116,1762527369099,-260.349826,0.00035,31]
[393362117,1762527369189,-591.534039,0.00035,31]
[393362118,1762527369284,-591.534039,0.00035,31]
[393362119,1762527369374,-260.349826,0.00035,31]
[393362120,1762527369461,-151.0,0.00035,31]
[393362121,1762527369550,-260.349826,0.00035,31]
[393362122,1762527369634,-151.0,0.00035,31]
[393362123,1762527369721,-270.573874,0.00035,31]
[393362124,1762527369806,-151.0,0.00035,31]
[393362125,1762527369896,-151.0,0.00035,31]
[393362126,1762527369986,-174.102077,0.00035,31]
[393362127,1762527370074,-151.0,0.00035,31]
[393362128,1762527370162,-151.0,0.00035,31]
[393362129,1762527370248,-151.0,0.00035,31]
[393362130,1762527370334,-151.0,0.00035,31]
[393362131,1762527370419,-455.158256,0.00035,31]
[393362132,1762527370507,-151.0,0.00035,31]
[393362133,1762527370595,-151.0,0.00035,31]
[393362134,1762527370682,-455.158256,0.00035,31]
[393362135,1762527370766,-151.0,0.00035,31]
[393362136,1762527370852,-455.158256,0.00035,31]
[393362137,1762527370935,-151.0,0.00035,31]
[393362138,1762527371027,-152.565431,0.00035,31]
[393362139,1762527371123,-151.0,0.00035,31]
[393362140,1762527371213,-455.158256,0.00035,31]
[393362141,1762527371306,-151.0,0.00035,30]
[393362142,1762527371403,-151.0,0.00035,30]
[393362143,1762527371498,-151.982115,0.00035,31]
[393362144,1762527371592,-276.003965,0.00035,30]
[393362145,1762527371681,-152.873505,0.00035,31]
[393362146,1762527371772,-305.232436,0.00035,31]
[393362147,1762527371855,-305.232436,0.00035,31]
[393362148,1762527371939,-305.232436,0.00035,31]
[393362149,1762527372028,-305.232436,0.00035,31]
[393362150,1762527372121,-500.0,0.00035028,30]
[393362151,1762527372203,-500.0,0.00035109,30]
[393362152,1762527372286,-500.0,0.0003531,30]
[393362153,1762527372373,-500.0,0.00035315,30]
[393362154,1762527372463,-500.0,0.00035473,30]
[393362155,1762527372556,-500.0,0.00035498,30]
[393362156,1762527372649,-999.0,0.00035616,120]
[393362157,1762527372747,-500.0,0.00035647,30]
[393362158,1762527372852,-500.0,0.00035731,30]
[393362159,1762527372962,-157.34,0.000359,30]
[393362160,1762527373065,-500.0,0.00036184,30]
[393362161,1762527373165,-500.0,0.0003626,30]
[393362162,1762527373256,-500.0,0.00036311,30]
[393362163,1762527373356,-500.0,0.00036364,30]
[393362164,1762527373453,-500.0,0.00036444,30]
[393362165,1762527373541,-500.0,0.00036503,30]
[393362166,1762527373643,-500.0,0.00036582,30]